Workbook

Sheet Leitfaden
B2: PRIVATER CASHFLOW
B3: Diese Arbeitsmappe enthält jährliche, monatliche und tägliche „Cashflow“-Arbeitsblätter. Wählen Sie den Cashflowtyp aus, der für Sie am besten funktioniert, oder verwenden Sie sie alle, um einen Einblick in Ihren privaten Cashflow zu gewinnen.
B5: Täglicher Cashflow | E5: Monatlicher Cashflow | H5: Jährlicher Cashflow
B7: Geben Sie einen Schätzbetrag für Ihren täglichen Cashflow ein, und überprüfen Sie die geschätzten monatlichen und jährlichen Summen. Verwenden Sie dies, um ein Gespür dafür zu entwickeln, wie sich Ihr tägliches Ausgabenverhalten im Laufe eines Monats oder Jahres auswirkt. | E7: Geben Sie den monatlichen Cashflow ein, oder schätzen Sie ihn für die verbleibenden Monate, um den für das Jahr prognostizierten Cashflow für die einzelnen Monate zu sehen. | H7: Geben Sie einen jährlichen Cashflowbetrag in vier Arbeitsblättern ein: Einkommen, Ausgaben, frei verfügbar und Spareinlagen. Sehen Sie sich die monatliche Aufschlüsselung und alle Posten im Vergleich an, und, was sich im Monat und im Jahr unterm Strich ergibt.

Sheet Täglicher Cashflow
B1: PRIVATER CASHFLOW
C2: Gesamtes verfügbares Bargeld: | D2: =TäglicherCashFlow -> 577.84 € | F2: HINWEIS: Wenn Sie der Tabelle tägliche Posten hinzufügen möchten, schätzen Sie den monatlichen Betrag/Wert ab, und setzen Sie diesen Wert in die entsprechende Monatsspalte ein.
B4: TÄGLICHE ZUSAMMENFASSUNG
B5: Summen | C5: Täglich | D5: Monatlich | E5: Jährlich
B6: Einkünfte | C6: =SUMIF(Täglich[Typ],$B6,Täglich[Täglich]) -> 342.47 € | D6: =SUMIF(Täglich[Typ],$B6,Täglich[Monatlich]) -> 10,416.80 € | E6: =SUMIF(Täglich[Typ],$B6,Täglich[Jährlich]) -> 125,001.55 €
B7: Ausgaben | C7: =SUMIF(Täglich[Typ],$B7,Täglich[Täglich]) -> 136.06 € | D7: =SUMIF(Täglich[Typ],$B7,Täglich[Monatlich]) -> 4,138.49 € | E7: =SUMIF(Täglich[Typ],$B7,Täglich[Jährlich]) -> 49,661.90 €
B8: Frei verfügbar | C8: =SUMIF(Täglich[Typ],$B8,Täglich[Täglich]) -> 36.29 € | D8: =SUMIF(Täglich[Typ],$B8,Täglich[Monatlich]) -> 1,103.82 € | E8: =SUMIF(Täglich[Typ],$B8,Täglich[Jährlich]) -> 13,245.85 €
B9: Spareinlagen | C9: =SUMIF(Täglich[Typ],$B9,Täglich[Täglich]) -> 63.02 € | D9: =SUMIF(Täglich[Typ],$B9,Täglich[Monatlich]) -> 1,916.86 € | E9: =SUMIF(Täglich[Typ],$B9,Täglich[Jährlich]) -> 23,002.30 €
B11: Typ | C11: Beschreibung | D11: Täglich | E11: Monatlich | F11: Jährlich
B12: Einkünfte | C12: Gehalt | D12: 246.58 € | E12: =Täglich[[#This Row],[Jährlich]]/12 -> 7,500.14 € | F12: =Täglich[[#This Row],[Täglich]]*365 -> 90,001.70 €
B13: Einkünfte | C13: Provisionen/Boni | D13: 13.70 € | E13: =Täglich[[#This Row],[Jährlich]]/12 -> 416.71 € | F13: =Täglich[[#This Row],[Täglich]]*365 -> 5,000.50 €
B14: Einkünfte | C14: Sonstiges 1 | D14: 82.19 € | E14: =Täglich[[#This Row],[Jährlich]]/12 -> 2,499.95 € | F14: =Täglich[[#This Row],[Täglich]]*365 -> 29,999.35 €
B15: Einkünfte | C15: Sonstiges 2 | D15: 0.00 € | E15: =Täglich[[#This Row],[Jährlich]]/12 -> 0.00 € | F15: =Täglich[[#This Row],[Täglich]]*365 -> 0.00 €
B16: Einkünfte | C16: Sonstiges 3 | D16: 0.00 € | E16: =Täglich[[#This Row],[Jährlich]]/12 -> 0.00 € | F16: =Täglich[[#This Row],[Täglich]]*365 -> 0.00 €
B17: Einkünfte | C17: Sonstiges 4 | D17: 0.00 € | E17: =Täglich[[#This Row],[Jährlich]]/12 -> 0.00 € | F17: =Täglich[[#This Row],[Täglich]]*365 -> 0.00 €
B18: Ausgaben | C18: Krankenversicherung/Arbeitslosenversicherung | D18: 41.10 € | E18: =Täglich[[#This Row],[Jährlich]]/12 -> 1,250.13 € | F18: =Täglich[[#This Row],[Täglich]]*365 -> 15,001.50 €
B19: Ausgaben | C19: Einkommensteuer | D19: 6.85 € | E19: =Täglich[[#This Row],[Jährlich]]/12 -> 208.35 € | F19: =Täglich[[#This Row],[Täglich]]*365 -> 2,500.25 €
B20: Ausgaben | C20: Kfz-Steuer/Gebühren | D20: 0.55 € | E20: =Täglich[[#This Row],[Jährlich]]/12 -> 16.73 € | F20: =Täglich[[#This Row],[Täglich]]*365 -> 200.75 €
B21: Ausgaben | C21: Kfz-Kosten | D21: 10.96 € | E21: =Täglich[[#This Row],[Jährlich]]/12 -> 333.37 € | F21: =Täglich[[#This Row],[Täglich]]*365 -> 4,000.40 €
B22: Ausgaben | C22: Hypothek/Miete | D22: 41.10 € | E22: =Täglich[[#This Row],[Jährlich]]/12 -> 1,250.13 € | F22: =Täglich[[#This Row],[Täglich]]*365 -> 15,001.50 €
B23: Ausgaben | C23: Versicherungen | D23: 0.68 € | E23: =Täglich[[#This Row],[Jährlich]]/12 -> 20.68 € | F23: =Täglich[[#This Row],[Täglich]]*365 -> 248.20 €
B24: Ausgaben | C24: Strom | D24: 3.29 € | E24: =Täglich[[#This Row],[Jährlich]]/12 -> 100.07 € | F24: =Täglich[[#This Row],[Täglich]]*365 -> 1,200.85 €
B25: Ausgaben | C25: Gas | D25: 1.64 € | E25: =Täglich[[#This Row],[Jährlich]]/12 -> 49.88 € | F25: =Täglich[[#This Row],[Täglich]]*365 -> 598.60 €
B26: Ausgaben | C26: Wasser | D26: 1.64 € | E26: =Täglich[[#This Row],[Jährlich]]/12 -> 49.88 € | F26: =Täglich[[#This Row],[Täglich]]*365 -> 598.60 €
B27: Ausgaben | C27: Abwasser | D27: 0.82 € | E27: =Täglich[[#This Row],[Jährlich]]/12 -> 24.94 € | F27: =Täglich[[#This Row],[Täglich]]*365 -> 299.30 €
B28: Ausgaben | C28: Müllabfuhr | D28: 0.41 € | E28: =Täglich[[#This Row],[Jährlich]]/12 -> 12.47 € | F28: =Täglich[[#This Row],[Täglich]]*365 -> 149.65 €
B29: Ausgaben | C29: Telefon | D29: 1.64 € | E29: =Täglich[[#This Row],[Jährlich]]/12 -> 49.88 € | F29: =Täglich[[#This Row],[Täglich]]*365 -> 598.60 €
B30: Ausgaben | C30: Internet | D30: 1.64 € | E30: =Täglich[[#This Row],[Jährlich]]/12 -> 49.88 € | F30: =Täglich[[#This Row],[Täglich]]*365 -> 598.60 €
B31: Ausgaben | C31: Invaliditätsprämien | D31: 4.11 € | E31: =Täglich[[#This Row],[Jährlich]]/12 -> 125.01 € | F31: =Täglich[[#This Row],[Täglich]]*365 -> 1,500.15 €
B32: Ausgaben | C32: Essen | D32: 13.70 € | E32: =Täglich[[#This Row],[Jährlich]]/12 -> 416.71 € | F32: =Täglich[[#This Row],[Täglich]]*365 -> 5,000.50 €
B33: Ausgaben | C33: Kleidung | D33: 3.29 € | E33: =Täglich[[#This Row],[Jährlich]]/12 -> 100.07 € | F33: =Täglich[[#This Row],[Täglich]]*365 -> 1,200.85 €
B34: Ausgaben | C34: Arzt/Zahnarzt/Rezepte | D34: 1.64 € | E34: =Täglich[[#This Row],[Jährlich]]/12 -> 49.88 € | F34: =Täglich[[#This Row],[Täglich]]*365 -> 598.60 €
B35: Ausgaben | C35: Bus | D35: 1.00 € | E35: =Täglich[[#This Row],[Jährlich]]/12 -> 30.42 € | F35: =Täglich[[#This Row],[Täglich]]*365 -> 365.00 €
B36: Ausgaben | C36: Sonstiges 2 | D36: 0.00 € | E36: =Täglich[[#This Row],[Jährlich]]/12 -> 0.00 € | F36: =Täglich[[#This Row],[Täglich]]*365 -> 0.00 €
B37: Ausgaben | C37: Sonstiges 3 | D37: 0.00 € | E37: =Täglich[[#This Row],[Jährlich]]/12 -> 0.00 € | F37: =Täglich[[#This Row],[Täglich]]*365 -> 0.00 €
B38: Ausgaben | C38: Sonstiges 4 | D38: 0.00 € | E38: =Täglich[[#This Row],[Jährlich]]/12 -> 0.00 € | F38: =Täglich[[#This Row],[Täglich]]*365 -> 0.00 €
B39: Frei verfügbar | C39: Ausgehen | D39: 3.29 € | E39: =Täglich[[#This Row],[Jährlich]]/12 -> 100.07 € | F39: =Täglich[[#This Row],[Täglich]]*365 -> 1,200.85 €
B40: Frei verfügbar | C40: Geschenke | D40: 1.64 € | E40: =Täglich[[#This Row],[Jährlich]]/12 -> 49.88 € | F40: =Täglich[[#This Row],[Täglich]]*365 -> 598.60 €
B41: Frei verfügbar | C41: Reise | D41: 6.16 € | E41: =Täglich[[#This Row],[Jährlich]]/12 -> 187.37 € | F41: =Täglich[[#This Row],[Täglich]]*365 -> 2,248.40 €
B42: Frei verfügbar | C42: Unterhaltung | D42: 3.29 € | E42: =Täglich[[#This Row],[Jährlich]]/12 -> 100.07 € | F42: =Täglich[[#This Row],[Täglich]]*365 -> 1,200.85 €
B43: Frei verfügbar | C43: Körperpflege | D43: 0.82 € | E43: =Täglich[[#This Row],[Jährlich]]/12 -> 24.94 € | F43: =Täglich[[#This Row],[Täglich]]*365 -> 299.30 €
B44: Frei verfügbar | C44: Einkaufsliste | D44: 5.48 € | E44: =Täglich[[#This Row],[Jährlich]]/12 -> 166.68 € | F44: =Täglich[[#This Row],[Täglich]]*365 -> 2,000.20 €
B45: Frei verfügbar | C45: Spenden | D45: 1.64 € | E45: =Täglich[[#This Row],[Jährlich]]/12 -> 49.88 € | F45: =Täglich[[#This Row],[Täglich]]*365 -> 598.60 €
B46: Frei verfügbar | C46: Clubs/Mitgliedschaften | D46: 0.82 € | E46: =Täglich[[#This Row],[Jährlich]]/12 -> 24.94 € | F46: =Täglich[[#This Row],[Täglich]]*365 -> 299.30 €
B47: Frei verfügbar | C47: Baumaßnahmen | D47: 13.15 € | E47: =Täglich[[#This Row],[Jährlich]]/12 -> 399.98 € | F47: =Täglich[[#This Row],[Täglich]]*365 -> 4,799.75 €
B48: Frei verfügbar | C48: Sonstiges 1 | D48: 0.00 € | E48: =Täglich[[#This Row],[Jährlich]]/12 -> 0.00 € | F48: =Täglich[[#This Row],[Täglich]]*365 -> 0.00 €
B49: Frei verfügbar | C49: Sonstiges 2 | D49: 0.00 € | E49: =Täglich[[#This Row],[Jährlich]]/12 -> 0.00 € | F49: =Täglich[[#This Row],[Täglich]]*365 -> 0.00 €
B50: Spareinlagen | C50: Barreserven | D50: 13.70 € | E50: =Täglich[[#This Row],[Jährlich]]/12 -> 416.71 € | F50: =Täglich[[#This Row],[Täglich]]*365 -> 5,000.50 €
B51: Spareinlagen | C51: 401(k)/Etc | D51: 32.88 € | E51: =Täglich[[#This Row],[Jährlich]]/12 -> 1,000.10 € | F51: =Täglich[[#This Row],[Täglich]]*365 -> 12,001.20 €
B52: Spareinlagen | C52: Sparkonto | D52: 16.44 € | E52: =Täglich[[#This Row],[Jährlich]]/12 -> 500.05 € | F52: =Täglich[[#This Row],[Täglich]]*365 -> 6,000.60 €
B53: Spareinlagen | C53: Sonstiges 1 | D53: 0.00 € | E53: =Täglich[[#This Row],[Jährlich]]/12 -> 0.00 € | F53: =Täglich[[#This Row],[Täglich]]*365 -> 0.00 €
B54: Spareinlagen | C54: Sonstiges 2 | D54: 0.00 € | E54: =Täglich[[#This Row],[Jährlich]]/12 -> 0.00 € | F54: =Täglich[[#This Row],[Täglich]]*365 -> 0.00 €
B55: Ergebnis | D55: =SUMIF(Täglich[Typ],"Einkünfte",Täglich[Täglich])-SUMIF(Täglich[Typ],"<>Einkünfte",Täglich[Täglich]) -> 107.10 € | E55: =SUMIF(Täglich[Typ],"Einkünfte",Täglich[Monatlich])-SUMIF(Täglich[Typ],"<>Einkünfte",Täglich[Monatlich]) -> 3,257.63 € | F55: =SUMIF(Täglich[Typ],"Einkünfte",Täglich[Jährlich])-SUMIF(Täglich[Typ],"<>Einkünfte",Täglich[Jährlich]) -> 39,091.50 €

Sheet Monatlicher Cashflow
B1: PRIVATER CASHFLOW
C2: Gesamter monatlicher Cashflow: | D2: =MonatlicherCashFlowBisDatum -> 18,380.00 € | F2: ANMERKUNG: Schätzen Sie für tägliche Posten den monatlichen Betrag/Wert ab, und setzen Sie diesen Wert in die entsprechende Monatsspalte ein.
B4: Typ | C4: Beschreibung | D4: Jan | E4: Feb | F4: Mrz | G4: Apr | H4: Mai | I4: Jun | J4: Jul | K4: Aug | L4: Sep | M4: Okt | N4: Nov | O4: Dez | P4: Ergebnis
B5: Einkünfte | C5: Gehalt | D5: 7,500.00 € | E5: 7,500.00 € | F5: 7,500.00 € | G5: 7,500.00 € | H5: 7,500.00 € | I5: 7,500.00 € | P5: =SUM(Monatlich[[#This Row],[Jan]:[Dez]]) -> 45,000.00 €
B6: Einkünfte | C6: Provisionen/Boni | D6: 400.00 € | E6: 400.00 € | F6: 500.00 € | G6: 200.00 € | H6: 0.00 € | I6: 600.00 € | P6: =SUM(Monatlich[[#This Row],[Jan]:[Dez]]) -> 2,100.00 €
B7: Einkünfte | C7: Sonstiges 1 | D7: 2,500.00 € | E7: 2,500.00 € | F7: 2,500.00 € | G7: 2,500.00 € | H7: 2,500.00 € | I7: 2,500.00 € | P7: =SUM(Monatlich[[#This Row],[Jan]:[Dez]]) -> 15,000.00 €
B8: Einkünfte | C8: Sonstiges 2 | D8: 0.00 € | E8: 0.00 € | F8: 0.00 € | G8: 0.00 € | H8: 0.00 € | I8: 0.00 € | P8: =SUM(Monatlich[[#This Row],[Jan]:[Dez]]) -> 0.00 €
B9: Einkünfte | C9: Sonstiges 3 | D9: 0.00 € | E9: 0.00 € | F9: 0.00 € | G9: 0.00 € | H9: 0.00 € | I9: 0.00 € | P9: =SUM(Monatlich[[#This Row],[Jan]:[Dez]]) -> 0.00 €
B10: Einkünfte | C10: Sonstiges 4 | D10: 0.00 € | E10: 0.00 € | F10: 0.00 € | G10: 0.00 € | H10: 0.00 € | I10: 0.00 € | P10: =SUM(Monatlich[[#This Row],[Jan]:[Dez]]) -> 0.00 €
B11: Ausgaben | C11: Krankenversicherung/Arbeitslosenversicherung | D11: 1,250.00 € | E11: 1,250.00 € | F11: 1,250.00 € | G11: 1,250.00 € | H11: 1,250.00 € | I11: 1,250.00 € | P11: =SUM(Monatlich[[#This Row],[Jan]:[Dez]]) -> 7,500.00 €
B12: Ausgaben | C12: Einkommensteuer | D12: 208.33 € | E12: 208.33 € | F12: 208.33 € | G12: 208.33 € | H12: 208.33 € | I12: 208.33 € | P12: =SUM(Monatlich[[#This Row],[Jan]:[Dez]]) -> 1,250.00 €
B13: Ausgaben | C13: Kfz-Steuer/Gebühren | D13: 16.67 € | E13: 16.67 € | F13: 16.67 € | G13: 16.67 € | H13: 16.67 € | I13: 16.67 € | P13: =SUM(Monatlich[[#This Row],[Jan]:[Dez]]) -> 100.00 €
B14: Ausgaben | C14: Kfz-Kosten | D14: 333.33 € | E14: 333.33 € | F14: 333.33 € | G14: 333.33 € | H14: 333.33 € | I14: 333.33 € | P14: =SUM(Monatlich[[#This Row],[Jan]:[Dez]]) -> 2,000.00 €
B15: Ausgaben | C15: Hypothek/Miete | D15: 1,250.00 € | E15: 1,250.00 € | F15: 1,250.00 € | G15: 1,250.00 € | H15: 1,250.00 € | I15: 1,250.00 € | P15: =SUM(Monatlich[[#This Row],[Jan]:[Dez]]) -> 7,500.00 €
B16: Ausgaben | C16: Versicherungen | D16: 25.00 € | E16: 25.00 € | F16: 25.00 € | G16: 25.00 € | H16: 25.00 € | I16: 25.00 € | P16: =SUM(Monatlich[[#This Row],[Jan]:[Dez]]) -> 150.00 €
B17: Ausgaben | C17: Strom | D17: 100.00 € | E17: 100.00 € | F17: 100.00 € | G17: 100.00 € | H17: 100.00 € | I17: 100.00 € | P17: =SUM(Monatlich[[#This Row],[Jan]:[Dez]]) -> 600.00 €
B18: Ausgaben | C18: Gas | D18: 50.00 € | E18: 50.00 € | F18: 50.00 € | G18: 50.00 € | H18: 50.00 € | I18: 50.00 € | P18: =SUM(Monatlich[[#This Row],[Jan]:[Dez]]) -> 300.00 €
B19: Ausgaben | C19: Wasser | D19: 50.00 € | E19: 50.00 € | F19: 50.00 € | G19: 50.00 € | H19: 50.00 € | I19: 50.00 € | P19: =SUM(Monatlich[[#This Row],[Jan]:[Dez]]) -> 300.00 €
B20: Ausgaben | C20: Abwasser | D20: 25.00 € | E20: 25.00 € | F20: 25.00 € | G20: 25.00 € | H20: 25.00 € | I20: 25.00 € | P20: =SUM(Monatlich[[#This Row],[Jan]:[Dez]]) -> 150.00 €
B21: Ausgaben | C21: Müllabfuhr | D21: 12.50 € | E21: 12.50 € | F21: 12.50 € | G21: 12.50 € | H21: 12.50 € | I21: 12.50 € | P21: =SUM(Monatlich[[#This Row],[Jan]:[Dez]]) -> 75.00 €
B22: Ausgaben | C22: Telefon | D22: 50.00 € | E22: 50.00 € | F22: 50.00 € | G22: 50.00 € | H22: 50.00 € | I22: 50.00 € | P22: =SUM(Monatlich[[#This Row],[Jan]:[Dez]]) -> 300.00 €
B23: Ausgaben | C23: Internet | D23: 50.00 € | E23: 50.00 € | F23: 50.00 € | G23: 50.00 € | H23: 50.00 € | I23: 50.00 € | P23: =SUM(Monatlich[[#This Row],[Jan]:[Dez]]) -> 300.00 €
B24: Ausgaben | C24: Invaliditätsprämien | D24: 125.00 € | E24: 125.00 € | F24: 125.00 € | G24: 125.00 € | H24: 125.00 € | I24: 125.00 € | P24: =SUM(Monatlich[[#This Row],[Jan]:[Dez]]) -> 750.00 €
B25: Ausgaben | C25: Essen | D25: 400.00 € | E25: 500.00 € | F25: 450.00 € | G25: 400.00 € | H25: 450.00 € | I25: 425.00 € | P25: =SUM(Monatlich[[#This Row],[Jan]:[Dez]]) -> 2,625.00 €
B26: Ausgaben | C26: Kleidung | D26: 50.00 € | E26: 75.00 € | F26: 100.00 € | G26: 75.00 € | H26: 125.00 € | I26: 75.00 € | P26: =SUM(Monatlich[[#This Row],[Jan]:[Dez]]) -> 500.00 €
B27: Ausgaben | C27: Arzt/Zahnarzt/Rezepte | D27: 50.00 € | E27: 10.00 € | F27: 25.00 € | G27: 25.00 € | H27: 20.00 € | I27: 70.00 € | P27: =SUM(Monatlich[[#This Row],[Jan]:[Dez]]) -> 200.00 €
B28: Ausgaben | C28: Bus | D28: 30.00 € | E28: 30.00 € | F28: 30.00 € | G28: 20.00 € | H28: 30.00 € | I28: 30.00 € | P28: =SUM(Monatlich[[#This Row],[Jan]:[Dez]]) -> 170.00 €
B29: Ausgaben | C29: Sonstiges 2 | D29: 0.00 € | E29: 0.00 € | F29: 0.00 € | G29: 0.00 € | H29: 0.00 € | I29: 0.00 € | P29: =SUM(Monatlich[[#This Row],[Jan]:[Dez]]) -> 0.00 €
B30: Ausgaben | C30: Sonstiges 3 | D30: 0.00 € | E30: 0.00 € | F30: 0.00 € | G30: 0.00 € | H30: 0.00 € | I30: 0.00 € | P30: =SUM(Monatlich[[#This Row],[Jan]:[Dez]]) -> 0.00 €
B31: Ausgaben | C31: Sonstiges 4 | D31: 0.00 € | E31: 0.00 € | F31: 0.00 € | G31: 0.00 € | H31: 0.00 € | I31: 0.00 € | P31: =SUM(Monatlich[[#This Row],[Jan]:[Dez]]) -> 0.00 €
B32: Frei verfügbar | C32: Ausgehen | D32: 50.00 € | E32: 150.00 € | F32: 100.00 € | G32: 50.00 € | H32: 150.00 € | I32: 100.00 € | P32: =SUM(Monatlich[[#This Row],[Jan]:[Dez]]) -> 600.00 €
B33: Frei verfügbar | C33: Geschenke | D33: 25.00 € | E33: 75.00 € | F33: 50.00 € | G33: 25.00 € | H33: 75.00 € | I33: 50.00 € | P33: =SUM(Monatlich[[#This Row],[Jan]:[Dez]]) -> 300.00 €
B34: Frei verfügbar | C34: Reise | D34: 0.00 € | E34: 0.00 € | F34: 1,000.00 € | G34: 0.00 € | H34: 0.00 € | I34: 1,000.00 € | P34: =SUM(Monatlich[[#This Row],[Jan]:[Dez]]) -> 2,000.00 €
B35: Frei verfügbar | C35: Unterhaltung | D35: 50.00 € | E35: 150.00 € | F35: 100.00 € | G35: 50.00 € | H35: 150.00 € | I35: 100.00 € | P35: =SUM(Monatlich[[#This Row],[Jan]:[Dez]]) -> 600.00 €
B36: Frei verfügbar | C36: Körperpflege | D36: 15.00 € | E36: 25.00 € | F36: 35.00 € | G36: 15.00 € | H36: 25.00 € | I36: 35.00 € | P36: =SUM(Monatlich[[#This Row],[Jan]:[Dez]]) -> 150.00 €
B37: Frei verfügbar | C37: Einkaufsliste | D37: 100.00 € | E37: 200.00 € | F37: 150.00 € | G37: 175.00 € | H37: 150.00 € | I37: 175.00 € | P37: =SUM(Monatlich[[#This Row],[Jan]:[Dez]]) -> 950.00 €
B38: Frei verfügbar | C38: Spenden | D38: 50.00 € | E38: 50.00 € | F38: 50.00 € | G38: 50.00 € | H38: 50.00 € | I38: 50.00 € | P38: =SUM(Monatlich[[#This Row],[Jan]:[Dez]]) -> 300.00 €
B39: Frei verfügbar | C39: Clubs/Mitgliedschaften | D39: 25.00 € | E39: 25.00 € | F39: 25.00 € | G39: 25.00 € | H39: 25.00 € | I39: 25.00 € | P39: =SUM(Monatlich[[#This Row],[Jan]:[Dez]]) -> 150.00 €
B40: Frei verfügbar | C40: Baumaßnahmen | D40: 400.00 € | E40: 400.00 € | F40: 400.00 € | G40: 400.00 € | H40: 400.00 € | I40: 400.00 € | P40: =SUM(Monatlich[[#This Row],[Jan]:[Dez]]) -> 2,400.00 €
B41: Frei verfügbar | C41: Sonstiges 1 | D41: 0.00 € | E41: 0.00 € | F41: 0.00 € | G41: 0.00 € | H41: 0.00 € | I41: 0.00 € | P41: =SUM(Monatlich[[#This Row],[Jan]:[Dez]]) -> 0.00 €
B42: Frei verfügbar | C42: Sonstiges 2 | D42: 0.00 € | E42: 0.00 € | F42: 0.00 € | G42: 0.00 € | H42: 0.00 € | I42: 0.00 € | P42: =SUM(Monatlich[[#This Row],[Jan]:[Dez]]) -> 0.00 €
B43: Spareinlagen | C43: Barreserven | D43: 416.67 € | E43: 416.67 € | F43: 416.67 € | G43: 416.67 € | H43: 416.67 € | I43: 416.67 € | P43: =SUM(Monatlich[[#This Row],[Jan]:[Dez]]) -> 2,500.00 €
B44: Spareinlagen | C44: 401(k)/Etc | D44: 1,000.00 € | E44: 1,000.00 € | F44: 1,000.00 € | G44: 1,000.00 € | H44: 1,000.00 € | I44: 1,000.00 € | P44: =SUM(Monatlich[[#This Row],[Jan]:[Dez]]) -> 6,000.00 €
B45: Spareinlagen | C45: Sparkonto | D45: 500.00 € | E45: 500.00 € | F45: 500.00 € | G45: 500.00 € | H45: 500.00 € | I45: 500.00 € | P45: =SUM(Monatlich[[#This Row],[Jan]:[Dez]]) -> 3,000.00 €
B46: Spareinlagen | C46: Sonstiges 1 | D46: 0.00 € | E46: 0.00 € | F46: 0.00 € | G46: 0.00 € | H46: 0.00 € | I46: 0.00 € | P46: =SUM(Monatlich[[#This Row],[Jan]:[Dez]]) -> 0.00 €
B47: Spareinlagen | C47: Sonstiges 2 | D47: 0.00 € | E47: 0.00 € | F47: 0.00 € | G47: 0.00 € | H47: 0.00 € | I47: 0.00 € | P47: =SUM(Monatlich[[#This Row],[Jan]:[Dez]]) -> 0.00 €
B48: Ergebnis | D48: =SUMIF(Monatlich[Typ],"Einkünfte",Monatlich[Jan])-SUMIF(Monatlich[Typ],"<>Einkünfte",Monatlich[Jan]) -> 3,692.50 € | E48: =SUMIF(Monatlich[Typ],"Einkünfte",Monatlich[Feb])-SUMIF(Monatlich[Typ],"<>Einkünfte",Monatlich[Feb]) -> 3,247.50 € | F48: =SUMIF(Monatlich[Typ],"Einkünfte",Monatlich[Mrz])-SUMIF(Monatlich[Typ],"<>Einkünfte",Monatlich[Mrz]) -> 2,522.50 € | G48: =SUMIF(Monatlich[Typ],"Einkünfte",Monatlich[Apr])-SUMIF(Monatlich[Typ],"<>Einkünfte",Monatlich[Apr]) -> 3,427.50 € | H48: =SUMIF(Monatlich[Typ],"Einkünfte",Monatlich[Mai])-SUMIF(Monatlich[Typ],"<>Einkünfte",Monatlich[Mai]) -> 2,887.50 € | I48: =SUMIF(Monatlich[Typ],"Einkünfte",Monatlich[Jun])-SUMIF(Monatlich[Typ],"<>Einkünfte",Monatlich[Jun]) -> 2,602.50 € | J48: =SUMIF(Monatlich[Typ],"Einkünfte",Monatlich[Jul])-SUMIF(Monatlich[Typ],"<>Einkünfte",Monatlich[Jul]) -> 0.00 € | K48: =SUMIF(Monatlich[Typ],"Einkünfte",Monatlich[Aug])-SUMIF(Monatlich[Typ],"<>Einkünfte",Monatlich[Aug]) -> 0.00 € | L48: =SUMIF(Monatlich[Typ],"Einkünfte",Monatlich[Sep])-SUMIF(Monatlich[Typ],"<>Einkünfte",Monatlich[Sep]) -> 0.00 € | M48: =SUMIF(Monatlich[Typ],"Einkünfte",Monatlich[Okt])-SUMIF(Monatlich[Typ],"<>Einkünfte",Monatlich[Okt]) -> 0.00 € | N48: =SUMIF(Monatlich[Typ],"Einkünfte",Monatlich[Nov])-SUMIF(Monatlich[Typ],"<>Einkünfte",Monatlich[Nov]) -> 0.00 € | O48: =SUMIF(Monatlich[Typ],"Einkünfte",Monatlich[Dez])-SUMIF(Monatlich[Typ],"<>Einkünfte",Monatlich[Dez]) -> 0.00 € | P48: =SUMIF(Monatlich[Typ],"Einkünfte",Monatlich[Ergebnis])-SUMIF(Monatlich[Typ],"<>Einkünfte",Monatlich[Ergebnis]) -> 18,380.00 €

Sheet Jährlicher Cashflow
B1: PRIVATER CASHFLOW
C2: Gesamter Cashflow bis Datum: | D2: =JährlicherCashFlowBisDatum -> 42,250.00 € | G2: Dies ist eine Abschätzung aufs Jahr. Verwenden Sie dieses Arbeitsblatt, wenn Sie Jahresbeträge mit geschätzten Werten für die Monate anzeigen möchten. Verwenden Sie Arbeitsblätter „Einkommen“, „Ausgaben“, „Frei verfügbar“ und „Spareinlagen“, um Artikel einzugeben.
B4: ZUSAMMENFASSUNG DER EINKÜNFTE | F4: ZUSAMMENFASSUNG DER AUSGABEN | J4: FREI VERFÜGBAR-ZUSAMMENFASSUNG | N4: ZUSAMMENFASSUNG SPAREINLAGEN
B5: Jahressumme: | C5: =Einkünfte!C11 -> 125,000.00 € | F5: Jahressumme: | G5: =Ausgaben[[#Totals],[Jährlich ]] -> 46,500.00 € | J5: Jahressumme: | K5: =Frei_verfügbar[[#Totals],[Jährlich ]] -> 13,250.00 € | N5: Jahressumme: | O5: =Spareinlagen[[#Totals],[Jährlich ]] -> 23,000.00 €
B8: Monatssumme: | C8: =Einkünfte!D11 -> 10,416.67 € | F8: Monatssumme: | G8: =Ausgaben[[#Totals],[Monatlich ]] -> 3,875.00 € | J8: Monatssumme: | K8: =Frei_verfügbar[[#Totals],[Monatlich ]] -> 1,104.17 € | N8: Monatssumme: | O8: =Spareinlagen[[#Totals],[Monatlich ]] -> 1,916.67 €
R10: Zeilenbeschriftungen | S10: Jahreseinkommen | U10: Zeilenbeschriftungen | V10: Summe der jährlichen | X10: Zeilenbeschriftungen | Y10: Summe der jährlichen | AA10: Zeilenbeschriftungen | AB10: Summe der jährlichen
R11: Gehalt | S11: 90,000 € | U11: Arzt/Zahnarzt/Rezepte | V11: 600 € | X11: Ausgehen | Y11: 1,200 € | AA11: Barreserven | AB11: 5,000 €
R12: Provisionen/Boni | S12: 5,000 € | U12: Einkommensteuer | V12: 2,500 € | X12: Baumaßnahmen | Y12: 4,800 € | AA12: Betriebsrente | AB12: 12,000 €
R13: Sonstiges 1 | S13: 30,000 € | U13: Essen | V13: 5,000 € | X13: Clubs/Mitgliedschaften | Y13: 300 € | AA13: Sonstiges 1 | AB13: 0 €
R14: Sonstiges 2 | S14: 0 € | U14: Gas | V14: 600 € | X14: Einkaufsliste | Y14: 2,000 € | AA14: Sonstiges 2 | AB14: 0 €
R15: Sonstiges 3 | S15: 0 € | U15: Hypothek/Miete | V15: 15,000 € | X15: Geschenke | Y15: 600 € | AA15: Spareinlagen/Investments | AB15: 6,000 €
R16: Sonstiges 4 | S16: 0 € | U16: Internet | V16: 600 € | X16: Körperpflege | Y16: 300 € | AA16: Gesamtsumme | AB16: 23,000 €
R17: Gesamtsumme | S17: 125,000 € | U17: Invaliditätsprämien | V17: 1,500 € | X17: Reise | Y17: 2,250 €
U18: Kfz-Kosten | V18: 4,000 € | X18: Sonstiges 1 | Y18: 0 €
U19: Kfz-Steuer/Gebühren | V19: 200 € | X19: Sonstiges 2 | Y19: 0 €
U20: Kleidung | V20: 1,200 € | X20: Spenden | Y20: 600 €
U21: Krankenversicherung/Arbeitslosenversicherung | V21: 12,500 € | X21: Unterhaltung | Y21: 1,200 €
U22: Müllabfuhr | V22: 150 € | X22: Gesamtsumme | Y22: 13,250 €
U23: Sonstiges 1 | V23: 0 €
U24: Sonstiges 2 | V24: 0 €
U25: Strom | V25: 1,200 €
U26: Telefon | V26: 600 €
U27: Versicherungen | V27: 250 €
U28: Wasser/Abwasser | V28: 600 €
U29: Gesamtsumme | V29: 46,500 €

Sheet Einkünfte
B1: PRIVATER CASHFLOW
C2: Gesamter Cashflow bis Datum: | D2: =JährlicherCashFlowBisDatum -> 42,250.00 € | F2: Dies ist eine Abschätzung aufs Jahr. Verwenden Sie dieses Arbeitsblatt, wenn Sie Jahresbeträge mit geschätzten Werten für die Monate anzeigen möchten. Wenn Sie den Tabellen tägliche Posten hinzufügen möchten, schätzen Sie den jährlichen Betrag/Wert ab, und setzen Sie diesen Wert in die entsprechende Jahresspalte ein.
B4: Einkünfte | C4: Jährlich | D4: Monatlich
B5: Gehalt | C5: 90,000.00 € | D5: =Einkünfte[[#This Row],[Jährlich ]]/12 -> 7,500.00 €
B6: Provisionen/Boni | C6: 5,000.00 € | D6: =Einkünfte[[#This Row],[Jährlich ]]/12 -> 416.67 €
B7: Sonstiges 1 | C7: 30,000.00 € | D7: =Einkünfte[[#This Row],[Jährlich ]]/12 -> 2,500.00 €
B8: Sonstiges 2 | C8: 0.00 € | D8: =Einkünfte[[#This Row],[Jährlich ]]/12 -> 0.00 €
B9: Sonstiges 3 | C9: 0.00 € | D9: =Einkünfte[[#This Row],[Jährlich ]]/12 -> 0.00 €
B10: Sonstiges 4 | C10: 0.00 € | D10: =Einkünfte[[#This Row],[Jährlich ]]/12 -> 0.00 €
B11: Ergebnis | C11: =SUBTOTAL(109,Einkünfte[[Jährlich ]]) -> 125,000.00 € | D11: =SUBTOTAL(109,Einkünfte[[Monatlich ]]) -> 10,416.67 €

Sheet Ausgaben
B1: PRIVATER CASHFLOW
C2: Gesamter Cashflow bis Datum: | D2: =JährlicherCashFlowBisDatum -> 42,250.00 € | F2: Dies ist eine Abschätzung aufs Jahr. Verwenden Sie dieses Arbeitsblatt, wenn Sie Jahresbeträge mit geschätzten Werten für die Monate anzeigen möchten. Wenn Sie den Tabellen tägliche Posten hinzufügen möchten, schätzen Sie den jährlichen Betrag/Wert ab, und setzen Sie diesen Wert in die entsprechende Jahresspalte ein.
B4: Ausgaben | C4: Jährlich | D4: Monatlich
B5: Krankenversicherung/Arbeitslosenversicherung | C5: 12,500.00 € | D5: =Ausgaben[[#This Row],[Jährlich ]]/12 -> 1,041.67 €
B6: Einkommensteuer | C6: 2,500.00 € | D6: =Ausgaben[[#This Row],[Jährlich ]]/12 -> 208.33 €
B7: Kfz-Steuer/Gebühren | C7: 200.00 € | D7: =Ausgaben[[#This Row],[Jährlich ]]/12 -> 16.67 €
B8: Kfz-Kosten | C8: 4,000.00 € | D8: =Ausgaben[[#This Row],[Jährlich ]]/12 -> 333.33 €
B9: Hypothek/Miete | C9: 15,000.00 € | D9: =Ausgaben[[#This Row],[Jährlich ]]/12 -> 1,250.00 €
B10: Versicherungen | C10: 250.00 € | D10: =Ausgaben[[#This Row],[Jährlich ]]/12 -> 20.83 €
B11: Strom | C11: 1,200.00 € | D11: =Ausgaben[[#This Row],[Jährlich ]]/12 -> 100.00 €
B12: Gas | C12: 600.00 € | D12: =Ausgaben[[#This Row],[Jährlich ]]/12 -> 50.00 €
B13: Wasser/Abwasser | C13: 600.00 € | D13: =Ausgaben[[#This Row],[Jährlich ]]/12 -> 50.00 €
B14: Müllabfuhr | C14: 150.00 € | D14: =Ausgaben[[#This Row],[Jährlich ]]/12 -> 12.50 €
B15: Telefon | C15: 600.00 € | D15: =Ausgaben[[#This Row],[Jährlich ]]/12 -> 50.00 €
B16: Internet | C16: 600.00 € | D16: =Ausgaben[[#This Row],[Jährlich ]]/12 -> 50.00 €
B17: Invaliditätsprämien | C17: 1,500.00 € | D17: =Ausgaben[[#This Row],[Jährlich ]]/12 -> 125.00 €
B18: Essen | C18: 5,000.00 € | D18: =Ausgaben[[#This Row],[Jährlich ]]/12 -> 416.67 €
B19: Kleidung | C19: 1,200.00 € | D19: =Ausgaben[[#This Row],[Jährlich ]]/12 -> 100.00 €
B20: Arzt/Zahnarzt/Rezepte | C20: 600.00 € | D20: =Ausgaben[[#This Row],[Jährlich ]]/12 -> 50.00 €
B21: Sonstiges 1 | C21: 0.00 € | D21: =Ausgaben[[#This Row],[Jährlich ]]/12 -> 0.00 €
B22: Sonstiges 2 | C22: 0.00 € | D22: =Ausgaben[[#This Row],[Jährlich ]]/12 -> 0.00 €
B23: Ergebnis | C23: =SUBTOTAL(109,Ausgaben[[Jährlich ]]) -> 46,500.00 € | D23: =SUBTOTAL(109,Ausgaben[[Monatlich ]]) -> 3,875.00 €

Sheet Frei verfügbar
B1: PRIVATER CASHFLOW
C2: Gesamter Cashflow bis Datum: | D2: =JährlicherCashFlowBisDatum -> 42,250.00 € | F2: Dies ist eine Abschätzung aufs Jahr. Verwenden Sie dieses Arbeitsblatt, wenn Sie Jahresbeträge mit geschätzten Werten für die Monate anzeigen möchten. Wenn Sie den Tabellen tägliche Posten hinzufügen möchten, schätzen Sie den jährlichen Betrag/Wert ab, und setzen Sie diesen Wert in die entsprechende Jahresspalte ein.
B4: Frei verfügbar | C4: Jährlich | D4: Monatlich
B5: Ausgehen | C5: 1,200.00 € | D5: =Frei_verfügbar[[#This Row],[Jährlich ]]/12 -> 100.00 €
B6: Geschenke | C6: 600.00 € | D6: =Frei_verfügbar[[#This Row],[Jährlich ]]/12 -> 50.00 €
B7: Reise | C7: 2,250.00 € | D7: =Frei_verfügbar[[#This Row],[Jährlich ]]/12 -> 187.50 €
B8: Unterhaltung | C8: 1,200.00 € | D8: =Frei_verfügbar[[#This Row],[Jährlich ]]/12 -> 100.00 €
B9: Körperpflege | C9: 300.00 € | D9: =Frei_verfügbar[[#This Row],[Jährlich ]]/12 -> 25.00 €
B10: Einkaufsliste | C10: 2,000.00 € | D10: =Frei_verfügbar[[#This Row],[Jährlich ]]/12 -> 166.67 €
B11: Spenden | C11: 600.00 € | D11: =Frei_verfügbar[[#This Row],[Jährlich ]]/12 -> 50.00 €
B12: Clubs/Mitgliedschaften | C12: 300.00 € | D12: =Frei_verfügbar[[#This Row],[Jährlich ]]/12 -> 25.00 €
B13: Baumaßnahmen | C13: 4,800.00 € | D13: =Frei_verfügbar[[#This Row],[Jährlich ]]/12 -> 400.00 €
B14: Sonstiges 1 | C14: 0.00 € | D14: =Frei_verfügbar[[#This Row],[Jährlich ]]/12 -> 0.00 €
B15: Sonstiges 2 | C15: 0.00 € | D15: =Frei_verfügbar[[#This Row],[Jährlich ]]/12 -> 0.00 €
B16: Ergebnis | C16: =SUBTOTAL(109,Frei_verfügbar[[Jährlich ]]) -> 13,250.00 € | D16: =SUBTOTAL(109,Frei_verfügbar[[Monatlich ]]) -> 1,104.17 €

Sheet Spareinlagen
B1: PRIVATER CASHFLOW
C2: Gesamter Cashflow bis Datum: | D2: =JährlicherCashFlowBisDatum -> 42,250.00 € | F2: Dies ist eine Abschätzung aufs Jahr. Verwenden Sie dieses Arbeitsblatt, wenn Sie Jahresbeträge mit geschätzten Werten für die Monate anzeigen möchten. Wenn Sie den Tabellen tägliche Posten hinzufügen möchten, schätzen Sie den jährlichen Betrag/Wert ab, und setzen Sie diesen Wert in die entsprechende Jahresspalte ein.
B4: Spareinlagen | C4: Jährlich | D4: Monatlich
B5: Barreserven | C5: 5,000.00 € | D5: =Spareinlagen[[#This Row],[Jährlich ]]/12 -> 416.67 €
B6: Betriebsrente | C6: 12,000.00 € | D6: =Spareinlagen[[#This Row],[Jährlich ]]/12 -> 1,000.00 €
B7: Spareinlagen/Investments | C7: 6,000.00 € | D7: =Spareinlagen[[#This Row],[Jährlich ]]/12 -> 500.00 €
B8: Sonstiges 1 | C8: 0.00 € | D8: =Spareinlagen[[#This Row],[Jährlich ]]/12 -> 0.00 €
B9: Sonstiges 2 | C9: 0.00 € | D9: =Spareinlagen[[#This Row],[Jährlich ]]/12 -> 0.00 €
B10: Ergebnis | C10: =SUBTOTAL(109,Spareinlagen[[Jährlich ]]) -> 23,000.00 € | D10: =SUBTOTAL(109,Spareinlagen[[Monatlich ]]) -> 1,916.67 €
